bitfinex/quotes_SOLUSD_20240616
["timestamp","ask_amount","ask_price","bid_price","bid_amount"]
[1718567367096,16.6425,148.61,148.58,5.34]
[1718567368387,0.5,148.62,148.59,5.34]
[1718567370805,0.5,148.62,148.57,0.34]
[1718567371016,0.5,148.62,148.58,5.34]
[1718567375286,0.5,148.62,148.59,5.34]
[1718567375704,0.5,148.62,148.6,0.17]
[1718567376001,15.3482,148.69,148.61,10.85]
[1718567376209,7.02013903,148.68,148.65,5.34]
[1718567376992,7.02013903,148.68,148.62,0.68]
[1718567377288,7.02013903,148.68,148.64,5.34]
[1718567379209,15.3482,148.69,148.66,5.34]
[1718567379398,7.02007161,148.68,148.66,5.34]
[1718567379899,15.3482,148.69,148.66,5.34]
[1718567380311,7.02011578,148.71,148.67,5.34]
[1718567382213,7.02011578,148.71,148.65,0.34]
[1718567382409,12.36011578,148.71,148.66,5.51]
[1718567382707,5.34,148.7,148.65,5.51]
[1718567382907,7.8282,148.7,148.65,5.34]
[1718567383092,7.8282,148.7,148.64,5.34]
[1718567383694,5.34,148.7,148.64,5.34]
[1718567386417,5.34,148.7,148.65,0.75634772]
[1718567386615,7.02011578,148.71,148.65,0.75634772]
[1718567386912,7.02011578,148.71,148.66,5.34]
[1718567398454,7.02011578,148.71,148.67,5.85]
[1718567402634,5.34,148.69,148.63,6.5551]
[1718567402935,5.34,148.69,148.64,0.17]
[1718567403154,5.34,148.69,148.64,5.51]
[1718567403325,7.0231895,148.68,148.64,5.51]
[1718567403724,7.0231895,148.68,148.64,6.85530946]
[1718567404817,7.0231895,148.68,148.64,5.51]
[1718567407015,7.0231895,148.68,148.65,7.02522722]
[1718567407220,5.34,148.71,148.65,7.02522722]
[1718567407421,7.02262133,148.7,148.65,7.02522722]
[1718567410443,7.02262133,148.7,148.66,5.34]
[1718567416251,7.02262133,148.7,148.65,0.34]
[1718567416434,7.02262133,148.7,148.65,5.68]
[1718567430754,7.02262133,148.7,148.66,1.3451938]
[1718567433372,7.02262133,148.7,148.65,5.68]
[1718567440452,7.02262133,148.7,148.66,5.34]
[1718567444584,7.02262133,148.7,148.67,0.34]
[1718567445483,7.02262133,148.7,148.67,0.17]
[1718567445682,7.02262133,148.7,148.66,0.51]
[1718567448787,7.02262133,148.7,148.66,0.34]
[1718567448997,7.02262133,148.7,148.65,0.17]
[1718567449177,12.36262133,148.7,148.64,0.68]
[1718567455197,5.34,148.68,148.63,5.34]
[1718567455401,5.34,148.68,148.62,21.8311]
[1718567455985,12.36370455,148.68,148.62,21.8311]
[1718567456297,12.36370455,148.68,148.63,5.51]
[1718567457085,7.02370455,148.68,148.63,5.51]
[1718567458406,7.02370455,148.68,148.63,0.17]
[1718567458709,7.02370455,148.68,148.63,0.68]
[1718567458904,7.02370455,148.68,148.63,6.02]
[1718567459484,7.02370455,148.68,148.63,0.68]
[1718567459704,7.02370455,148.68,148.61,10.29220966]
[1718567459705,9.51220455,148.68,148.61,10.29220966]
[1718567459892,9.51220455,148.68,148.59,6.5668]
[1718567459893,5.34,148.65,148.59,6.5668]
[1718567460091,5.34,148.65,148.59,5.34]
[1718567460981,5.34,148.65,148.6,5.34]
[1718567461318,5.34,148.66,148.6,5.51]
[1718567461690,5.34,148.66,148.61,0.17]
[1718567463384,5.34,148.66,148.6,5.68]
[1718567464189,5.34,148.63,148.55,22.9954]
[1718567464498,5.34,148.61,148.56,5.34]
[1718567464694,5.34,148.61,148.55,22.9954]
[1718567464695,5.34,148.6,148.51,22.4954]
[1718567464898,5.34,148.6,148.54,5.34]
[1718567465087,5.34,148.6,148.51,31.758443]
[1718567465282,5.34,148.6,148.54,5.34]
[1718567465701,5.34,148.6,148.51,31.758443]
[1718567466007,5.34,148.6,148.54,5.34]
[1718567466188,7.01982303,148.59,148.55,0.68]
[1718567466895,7.01982303,148.59,148.55,7.36599429]
[1718567467207,5.34,148.62,148.56,5.34]
[1718567467388,7.02711677,148.61,148.56,5.34]
[1718567467887,12.36711677,148.61,148.55,6.02]
[1718567470612,7.02711677,148.61,148.55,6.02]
[1718567470805,12.36711677,148.61,148.55,6.02]
[1718567471111,12.36711677,148.61,148.56,5.34]
[1718567471408,12.36711677,148.61,148.55,0.68]
[1718567471913,5.34,148.6,148.55,0.68]
[1718567472213,12.36711677,148.61,148.55,6.02]
[1718567473311,12.36711677,148.61,148.56,5.34]
[1718567474312,12.36711677,148.61,148.55,0.68]
[1718567474499,12.36711677,148.61,148.56,5.34]
[1718567475418,7.02711677,148.61,148.58,5.34]
[1718567475593,21.0039,148.65,148.6,5.34]
[1718567475793,21.0039,148.65,148.59,0.51]
[1718567475794,7.02577892,148.63,148.59,0.51]
[1718567475994,7.02577892,148.63,148.59,1.8557959]
[1718567476411,7.02577892,148.63,148.59,0.51]
[1718567476718,7.02577892,148.63,148.59,0.34]
[1718567476917,7.02577892,148.63,148.59,0.17]
[1718567478420,7.02577892,148.63,148.59,0.34]
[1718567483996,7.02577892,148.63,148.59,0.17]
[1718567484215,12.36577892,148.63,148.59,0.17]
[1718567484414,12.36577892,148.63,148.58,0.51]
[1718567484716,7.02577892,148.63,148.58,0.51]
[1718567500531,5.34,148.61,148.54,9.263043]
[1718567500759,5.34,148.6,148.56,0.17]
[1718567500932,5.34,148.6,148.54,9.263043]
[1718567501114,5.34,148.59,148.54,9.263043]
[1718567501313,12.36646249,148.59,148.54,9.263043]
[1718567501647,12.36646249,148.59,148.54,14.603043]
[1718567502829,12.36646249,148.59,148.54,9.263043]
[1718567504738,12.36646249,148.59,148.53,5.85]
[1718567504933,12.36646249,148.59,148.54,0.51]
[1718567506947,12.36646249,148.59,148.54,0.17]
[1718567511332,7.02646249,148.59,148.54,0.34]
[1718567511556,7.02646249,148.59,148.55,5.68]
[1718567511744,7.02646249,148.59,148.56,0.17]
[1718567512442,20.8124,148.61,148.56,5.51]
[1718567512763,7.02705927,148.6,148.56,5.51]
[1718567512951,7.02705927,148.6,148.56,0.17]
[1718567522282,12.36705927,148.6,148.56,0.17]
[1718567522576,7.02705927,148.6,148.56,0.17]
[1718567522773,12.36705927,148.6,148.56,0.17]
[1718567523883,7.02705927,148.6,148.56,0.17]
[1718567524395,7.02705927,148.6,148.57,0.17]
[1718567524560,7.02705927,148.6,148.57,5.68]
[1718567526363,14.1456,148.63,148.57,5.68]
[1718567526688,7.02548935,148.61,148.57,5.68]
[1718567530167,7.02548935,148.61,148.57,0.34]
[1718567552489,7.02548935,148.61,148.57,5.68]
[1718567557583,7.02548935,148.61,148.58,5.34]
[1718567561317,7.02548935,148.61,148.59,0.17]
[1718567561506,43.0167,148.65,148.59,7.36586038]
[1718567561697,28.0823,148.65,148.59,6.02]
[1718567561905,9.51476739,148.64,148.59,6.02]
[1718567562311,19.83316739,148.64,148.59,0.68]
[1718567562503,14.85476739,148.64,148.59,0.68]
[1718567563603,12.36556739,148.64,148.59,0.68]
[1718567564902,7.02556739,148.64,148.59,0.68]
[1718567565207,7.02556739,148.64,148.59,6.02]
[1718567570537,7.02556739,148.64,148.6,5.34]
[1718567570734,7.02556739,148.64,148.61,0.51]
[1718567571217,7.02556739,148.64,148.61,1.85566094]
[1718567574431,7.02556739,148.64,148.61,0.51]
[1718567574830,7.02556739,148.64,148.61,1.85566028]
[1718567576536,22.3987,148.67,148.61,7.19562217]
[1718567576733,27.7387,148.67,148.61,7.19562217]
[1718567576913,37.25196966,148.67,148.61,7.19562217]
[1718567577106,2.4889,148.66,148.61,7.19562217]
[1718567578913,31.91196966,148.67,148.61,7.19562217]
[1718567579112,37.25196966,148.67,148.61,7.19562217]
[1718567579531,2.4889,148.66,148.61,7.19562217]
[1718567581447,37.25196966,148.67,148.61,7.19562217]
[1718567583843,2.4889,148.66,148.61,7.19562217]
[1718567586048,37.25196966,148.67,148.61,7.19562217]
[1718567586845,2.4889,148.66,148.61,7.19562217]
[1718567587548,7.02170994,148.65,148.61,7.19562217]
[1718567588247,2.4889,148.66,148.61,7.19562217]
[1718567588429,2.4888,148.67,148.62,0.17]
[1718567588629,7.8288,148.67,148.62,0.17]
[1718567589046,5.34,148.67,148.62,0.17]
[1718567589248,5.34,148.67,148.62,5.51]
[1718567589452,7.8287,148.68,148.63,1.85542634]
[1718567589648,12.8058,148.68,148.63,0.51]
[1718567589840,7.8287,148.68,148.63,0.51]
[1718567590440,2.4889,148.66,148.6,0.17]
[1718567590649,5.34,148.66,148.6,5.85]
[1718567590962,2.4889,148.66,148.61,5.51]
[1718567591133,2.4889,148.66,148.62,0.34]
[1718567591330,7.8289,148.66,148.62,0.34]
[1718567591647,5.34,148.66,148.62,0.34]
[1718567592228,7.02450699,148.65,148.62,0.34]
[1718567596470,5.34,148.63,148.55,6.3853]
[1718567596644,5.34,148.62,148.57,5.34]
[1718567596844,5.34,148.62,148.55,21.6278]
[1718567596845,5.34,148.62,148.56,5.34]
[1718567598055,5.34,148.62,148.57,0.68]
[1718567598360,5.34,148.61,148.57,0.34]
[1718567599751,5.34,148.61,148.58,0.17]
[1718567600863,31.91570699,148.65,148.58,0.17]
[1718567600864,5.34,148.62,148.58,0.17]
[1718567601469,5.34,148.63,148.58,0.17]
[1718567601666,9.51360699,148.65,148.58,0.17]
[1718567601964,5.34,148.63,148.58,0.17]
[1718567602670,7.01483055,148.62,148.58,0.17]
[1718567611477,12.35483055,148.62,148.58,0.17]
[1718567617677,7.01483055,148.62,148.58,0.34]
[1718567617884,7.01483055,148.62,148.59,5.68]
[1718567618961,7.01483055,148.62,148.6,0.17]
[1718567619161,7.01483055,148.62,148.6,5.51]
[1718567621389,7.01483055,148.62,148.61,0.17]
[1718567621557,7.01483055,148.62,148.61,0.51]
[1718567621757,7.01483055,148.62,148.61,0.68]
[1718567622154,7.01483055,148.62,148.61,6.02]
[1718567624866,7.01483055,148.62,148.61,0.68]
[1718567625096,105.35562718,148.73,148.61,0.68]
[1718567625097,7.4653,148.69,148.61,0.68]
[1718567625266,2.4885,148.69,148.63,5.34]
[1718567625591,7.02187003,148.67,148.63,5.34]
[1718567626294,7.02187003,148.67,148.63,0.17]
[1718567626496,7.02187003,148.67,148.63,0.51]
[1718567628564,2.4881,148.71,148.64,5.51]
[1718567628770,5.34,148.7,148.65,1.68531401]
[1718567629083,7.0219429,148.69,148.65,1.68531401]
[1718567629288,12.3619429,148.69,148.65,0.34]
[1718567631473,7.0219429,148.69,148.65,0.34]
[1718567632217,7.0219429,148.69,148.66,0.17]
[1718567632573,7.0219429,148.69,148.65,0.34]
[1718567632763,7.0219429,148.69,148.63,0.17]
[1718567632764,12.3619429,148.69,148.64,5.68]
[1718567632971,12.3619429,148.69,148.65,0.17]
[1718567634265,5.34,148.68,148.65,0.17]
[1718567634470,7.0219429,148.69,148.64,5.68]
[1718567634771,7.0219429,148.69,148.65,5.51]
[1718567636917,7.0219429,148.69,148.66,5.68]
[1718567637069,7.0219429,148.69,148.66,5.51]
[1718567637273,7.0219429,148.69,148.66,0.17]
[1718567637474,7.0219429,148.69,148.66,0.34]
[1718567644012,7.0219429,148.69,148.67,0.17]
[1718567644192,7.0219429,148.69,148.67,0.34]
[1718567645192,5.436793,148.78,148.67,0.34]
[1718567645193,26.6593709,148.76,148.68,5.51]
[1718567645399,5.34,148.75,148.69,5.34]
[1718567645623,7.01978347,148.72,148.69,5.51]
[1718567645796,5.34,148.75,148.69,5.51]
[1718567645999,7.8273,148.75,148.69,5.51]
[1718567646322,7.01944923,148.72,148.71,0.17]
[1718567646631,7.01893198,148.74,148.71,6.02]
[1718567646928,7.01893198,148.74,148.72,5.34]
[1718567647098,7.01893198,148.74,148.71,6.02]
[1718567648625,7.01893198,148.74,148.71,0.68]
[1718567648797,7.01893198,148.74,148.71,1.63758069]
[1718567649213,7.01893198,148.74,148.71,2.02464628]
[1718567649422,7.01893198,148.74,148.71,7.36464628]
[1718567649729,7.01893198,148.74,148.71,2.02464628]
[1718567649909,0.8383709,148.76,148.71,11.28722533]
[1718567650095,7.85609873,148.76,148.73,5.34]
[1718567650301,7.85609873,148.76,148.71,11.28722533]
[1718567650302,7.85609873,148.76,148.74,0.34]
[1718567650815,0.8383709,148.76,148.75,0.17]
[1718567651117,7.85563127,148.76,148.75,0.34]
[1718567651291,7.85563127,148.76,148.75,0.68]
[1718567651692,0.8383709,148.76,148.75,0.68]
[1718567654427,0.8383709,148.76,148.75,6.02]
[1718567654641,0.8383709,148.76,148.75,0.68]
[1718567656530,0.8383709,148.76,148.75,6.02]
[1718567657948,0.8383709,148.76,148.75,36.02]
[1718567658624,0.8383709,148.76,148.75,6.02]
[1718567661735,0.8383709,148.76,148.75,0.68]
[1718567663428,0.8383709,148.76,148.71,9.26257905]
[1718567663429,0.8383709,148.76,148.71,14.60257905]
[1718567663603,7.8553676,148.76,148.71,14.60257905]
[1718567664328,7.8553676,148.76,148.72,5.34]
[1718567664634,7.8553676,148.76,148.75,0.17]
[1718567664635,0.8383709,148.76,148.75,0.17]
[1718567664831,0.8383709,148.76,148.75,0.68]
[1718567673256,0.8383709,148.76,148.75,0.51]
[1718567673548,0.8383709,148.76,148.75,0.34]
[1718567673724,0.8383709,148.76,148.74,0.51]
[1718567691290,0.8383709,148.76,148.75,0.17]
[1718567691887,0.8383709,148.76,148.75,5.51]
[1718567692079,0.8383709,148.76,148.75,6.02]
[1718567693390,0.8383709,148.76,148.75,15.28257905]
[1718567698284,0.8383709,148.76,148.75,9.94257905]
[1718567698594,0.8383709,148.76,148.75,15.28257905]
[1718567714408,0.8383709,148.76,148.74,7.017241]
[1718567714697,0.8383709,148.76,148.72,5.27579473]
[1718567714906,0.8383709,148.76,148.74,5.34]
[1718567715298,0.8383709,148.76,148.73,5.34]
[1718567715512,0.8383709,148.76,148.7,9.26257905]
[1718567716112,0.8383709,148.76,148.73,5.34]
[1718567717005,0.8383709,148.76,148.7,9.26257905]
[1718567717301,16.7364709,148.76,148.7,14.60257905]
[1718567717484,22.0764709,148.76,148.7,14.60257905]
[1718567718525,22.0764709,148.76,148.72,0.17]
[1718567719608,16.7364709,148.76,148.72,0.17]
[1718567720818,16.7364709,148.76,148.72,1.51459808]
[1718567721024,16.7364709,148.76,148.74,0.17]
[1718567725221,23.75549883,148.76,148.74,0.17]
[1718567727721,0.8383709,148.76,148.74,6.85447423]
[1718567727925,0.8383709,148.76,148.75,6.02]
[1718567734305,0.8383709,148.76,148.75,0.68]
[1718567735009,0.8383709,148.76,148.75,2.02427802]
[1718567735207,0.8383709,148.76,148.75,7.36427802]
[1718567735836,0.8383709,148.76,148.75,6.02]
[1718567753343,0.8383709,148.76,148.75,0.68]
[1718567756460,0.8383709,148.76,148.75,6.02]
[1718567760364,0.8383709,148.76,148.75,0.68]
[1718567760666,0.8383709,148.76,148.75,6.02]
[1718567761452,0.8383709,148.76,148.75,0.68]
[1718567770172,6.1783709,148.76,148.75,0.34]
[1718567770378,6.1783709,148.76,148.71,0.17]
[1718567770555,6.1783709,148.76,148.71,6.02]
[1718567771100,6.1783709,148.76,148.71,0.68]
[1718567772171,6.1783709,148.76,148.7,9.26257905]
[1718567772356,6.1783709,148.76,148.71,5.34]
[1718567772559,6.1783709,148.76,148.67,27.64609696]
[1718567772759,0.8383709,148.76,148.7,5.34]
[1718567773175,6.1783709,148.76,148.71,5.34]
[1718567773554,6.1783709,148.76,148.72,0.68]
[1718567774268,0.8383709,148.76,148.72,0.68]
[1718567774461,6.1783709,148.76,148.72,0.68]
[1718567782295,0.8383709,148.76,148.72,0.68]
[1718567782492,6.1783709,148.76,148.72,0.68]
[1718567783396,0.8383709,148.76,148.72,0.68]
[1718567783585,0.8383709,148.76,148.72,6.02]
[1718567787572,0.8383709,148.76,148.72,0.68]
[1718567787895,0.8383709,148.76,148.72,6.02]
[1718567791979,0.8383709,148.76,148.74,0.17]
[1718567792182,0.8383709,148.76,148.74,2.02446464]
[1718567793614,0.8383709,148.76,148.75,5.34]
[1718567793899,0.8383709,148.76,148.75,6.02]
[1718567794701,0.8383709,148.76,148.75,0.68]
[1718567795006,0.8383709,148.76,148.75,6.02]
[1718567797803,0.8383709,148.76,148.75,0.68]
[1718567798007,0.8383709,148.76,148.75,6.02]
[1718567800010,0.8383709,148.76,148.75,0.68]
[1718567800590,0.8383709,148.76,148.68,100.0]
[1718567800793,0.8383709,148.76,148.73,0.17]
[1718567800999,0.8383709,148.76,148.73,0.68]
[1718567803011,0.8383709,148.76,148.73,6.02]
[1718567804208,0.8383709,148.76,148.67,30.42667601]
[1718567804209,15.8974,148.75,148.67,30.42667601]
[1718567804411,15.8974,148.75,148.7,5.34]
[1718567805724,15.8974,148.75,148.71,0.34]
[1718567805892,15.8974,148.75,148.71,5.68]
[1718567814324,2.4875,148.74,148.69,0.34]
[1718567814534,5.34,148.74,148.68,0.17]
[1718567814824,5.34,148.74,148.69,5.34]
[1718567815514,7.8275,148.74,148.68,0.17]
[1718567815726,7.8275,148.74,148.68,5.34]
[1718567815902,5.34,148.74,148.68,5.34]
[1718567817024,21.2374,148.75,148.69,5.34]
[1718567818827,23.7248,148.75,148.69,5.34]
[1718567819912,23.7248,148.75,148.7,5.68]
[1718567819913,15.8974,148.75,148.7,5.68]
[1718567820117,15.8974,148.75,148.7,5.51]
[1718567820800,15.8974,148.75,148.71,5.34]
[1718567821914,15.8974,148.75,148.7,5.51]
[1718567822307,18.3848,148.75,148.7,5.51]
[1718567823318,15.8974,148.75,148.7,0.17]
[1718567823640,15.8974,148.75,148.7,5.51]
[1718567823833,23.7247,148.75,148.7,0.17]
[1718567824931,15.8974,148.75,148.7,5.68]
[1718567825135,15.8974,148.75,148.71,5.34]
[1718567825337,15.8974,148.75,148.7,5.68]
[1718567825843,15.8974,148.75,148.71,5.34]
[1718567827746,18.3847,148.75,148.71,5.34]
[1718567829729,23.3595,148.75,148.71,5.34]
[1718567829931,30.8216,148.75,148.7,5.68]
[1718567830140,2.4875,148.74,148.7,5.68]
[1718567830634,40.7713,148.75,148.7,5.68]
[1718567832153,23.3597,148.75,148.7,5.68]
[1718567833342,18.3849,148.75,148.7,5.68]
[1718567833545,23.3597,148.75,148.7,5.68]
[1718567834445,18.3849,148.75,148.7,5.68]
[1718567837240,15.8974,148.75,148.7,5.68]
[1718567837465,18.3848,148.75,148.7,5.68]
[1718567837959,15.8974,148.75,148.7,5.68]
[1718567838261,18.3847,148.75,148.7,5.68]
[1718567838454,15.8974,148.75,148.7,5.68]
[1718567840350,15.8974,148.75,148.71,5.34]
[1718567840551,15.8974,148.75,148.72,5.34]
[1718567841062,15.8974,148.75,148.73,5.85]
[1718567841372,0.8383709,148.76,148.73,5.85]
[1718567843447,0.8383709,148.76,148.74,5.34]
[1718567846466,0.8383709,148.76,148.75,0.34]
[1718567846674,0.8383709,148.76,148.75,6.02]
[1718567856380,0.8383709,148.76,148.75,0.51]
[1718567856586,0.8383709,148.76,148.74,5.34]
[1718567857071,0.8383709,148.76,148.73,5.68]
[1718567865391,0.8383709,148.76,148.73,0.34]
[1718567865580,0.8383709,148.76,148.73,5.68]
[1718567867196,0.8383709,148.76,148.74,5.34]
[1718567869097,0.8383709,148.76,148.75,5.34]
[1718567869282,0.8383709,148.76,148.75,5.51]
[1718567878410,0.8383709,148.76,148.75,0.17]
[1718567878705,0.8383709,148.76,148.75,5.85]
[1718567879103,0.8383709,148.76,148.75,6.02]
[1718567886305,0.8383709,148.76,148.75,11.36]
[1718567893018,0.8383709,148.76,148.75,6.02]
[1718567909755,0.8383709,148.76,148.75,0.68]
[1718567909942,0.8383709,148.76,148.75,6.02]
[1718567919255,0.8383709,148.76,148.75,0.68]
[1718567919437,0.8383709,148.76,148.75,6.02]
[1718567943490,0.8383709,148.76,148.75,0.68]
[1718567943678,0.8383709,148.76,148.75,6.02]
[1718567945216,0.8383709,148.76,148.75,5.71726434]
[1718567945681,0.8383709,148.76,148.75,5.68]
[1718567947194,0.8383709,148.76,148.75,27.04]
[1718567947497,0.8383709,148.76,148.75,28.7242799]
[1718567947705,0.8383709,148.76,148.75,37.98685895]
[1718567950303,0.8383709,148.76,148.75,36.64257905]
[1718567960191,0.8383709,148.76,148.75,41.91514363]
[1718567968229,15.1795,148.83,148.76,0.17]
[1718567968390,15.1795,148.83,148.82,5.34]
[1718567975851,7.4601,148.79,148.72,15.1795]
[1718567976024,16.1489,148.82,148.76,5.34]
[1718567976025,22.7449,148.81,148.76,5.34]
[1718567976210,12.4328,148.8,148.76,5.34]
[1718567976410,24.8656,148.8,148.76,5.34]
[1718567976724,7.4598,148.8,148.76,5.34]
[1718567976927,2.4867,148.8,148.76,5.34]
[1718567977125,2.4867,148.79,148.69,27.72211293]
[1718567977445,2.4869,148.78,148.75,5.34]
[1718567977635,24.8675,148.79,148.75,5.34]
[1718567977849,14.9206,148.79,148.75,5.34]
[1718567978137,16.1489,148.77,148.75,5.34]
[1718567978327,18.636,148.77,148.68,21.36]
[1718567978534,23.6102,148.77,148.73,5.34]
[1718567979217,16.1489,148.77,148.73,5.34]
[1718567982248,16.1489,148.77,148.68,21.36]
[1718567982249,16.1489,148.77,148.74,5.34]
[1718567986433,16.1489,148.77,148.69,0.17]
[1718567986653,16.1489,148.77,148.73,5.34]
[1718567987228,16.1489,148.77,148.72,5.34]
[1718567992554,16.1489,148.77,148.73,5.34]
[1718567993670,16.1489,148.77,148.76,5.34]
[1718567993849,16.1489,148.77,148.76,5.51]
[1718567998951,16.1489,148.77,148.7,0.17]
[1718567999164,18.636,148.77,148.7,0.17]
[1718567999340,18.636,148.77,148.72,5.34]
[1718567999672,16.1489,148.77,148.72,5.34]
[1718567999859,18.6359,148.77,148.69,8.10341239]
[1718568000038,18.6359,148.77,148.72,5.34]
[1718568000363,18.6359,148.77,148.69,8.10341239]
[1718568000537,23.9759,148.77,148.69,8.10341239]
[1718568000738,23.9759,148.77,148.65,22.3663]
[1718568000739,28.95,148.77,148.71,5.34]
[1718568000938,2.4872,148.76,148.65,30.46971239]
[1718568001139,2.4872,148.76,148.71,5.34]
[1718568001554,2.4872,148.76,148.72,5.34]
[1718568002069,18.636,148.77,148.72,5.34]
[1718568002240,16.1489,148.77,148.73,5.51]
[1718568002446,16.1489,148.77,148.74,5.34]
[1718568002968,16.1489,148.77,148.75,5.34]
[1718568003369,16.1489,148.77,148.76,5.51]
[1718568004046,16.1489,148.77,148.76,5.34]
[1718568004366,16.1489,148.77,148.74,5.34]
[1718568005066,16.1489,148.77,148.75,0.17]
[1718568005268,16.1489,148.77,148.75,5.68]
[1718568005739,16.1489,148.77,148.76,0.34]
[1718568005938,16.1489,148.77,148.76,0.51]
[1718568006174,16.1489,148.77,148.76,0.17]
[1718568006551,16.1489,148.77,148.76,0.34]
[1718568006764,23.2716,148.81,148.76,5.68]
[1718568006950,15.8122,148.81,148.77,0.17]
[1718568007651,15.8122,148.81,148.77,5.51]
[1718568007652,18.2985,148.81,148.77,5.51]
[1718568007858,23.2713,148.81,148.77,5.51]
[1718568008068,2.4865,148.8,148.77,0.17]
[1718568009355,38.1899,148.81,148.77,0.34]
[1718568009550,40.6764,148.81,148.77,0.34]
[1718568009751,23.2715,148.81,148.77,0.34]
[1718568010078,2.4865,148.8,148.77,0.17]
[1718568012449,7.4596,148.8,148.77,0.17]
[1718568013746,5.34,148.8,148.7,29.53751239]
[1718568013952,7.4609,148.78,148.74,5.34]
[1718568014171,12.4346,148.78,148.74,5.34]
[1718568014381,7.461,148.78,148.74,5.34]
[1718568014678,2.487,148.78,148.74,5.34]
[1718568015182,30.2081,148.79,148.74,5.34]
[1718568015382,15.8122,148.81,148.74,5.34]
[1718568015383,30.2063,148.8,148.74,5.34]
[1718568015584,7.4599,148.8,148.75,5.68]
[1718568015788,2.4866,148.8,148.76,0.34]
[1718568016792,2.4866,148.8,148.76,5.68]
[1718568017269,7.4597,148.8,148.76,5.68]
[1718568017471,40.6767,148.81,148.76,5.68]
[1718568017786,2.4865,148.8,148.77,0.17]
[1718568017991,40.6767,148.81,148.77,0.17]
[1718568018290,2.4865,148.8,148.77,0.17]
[1718568019674,7.4596,148.8,148.77,0.17]
[1718568020496,14.9193,148.8,148.77,0.17]
[1718568021374,2.4867,148.79,148.77,0.17]
[1718568021585,7.4607,148.78,148.7,34.98778418]
[1718568021767,7.4607,148.78,148.74,5.34]
[1718568023002,2.4869,148.78,148.74,5.34]
[1718568023794,2.4869,148.78,148.75,0.17]
[1718568024486,30.2077,148.79,148.74,0.17]
[1718568024810,12.8004,148.79,148.74,0.17]
[1718568025167,7.8268,148.79,148.74,5.51]
[1718568025692,20.2598,148.8,148.74,5.51]
[1718568025871,12.7998,148.8,148.74,5.51]
[1718568026073,2.4867,148.79,148.74,5.51]
[1718568026291,30.206,148.8,148.74,5.51]
[1718568026687,28.6116,148.81,148.75,5.85]
[1718568026879,18.2987,148.81,148.76,5.51]
[1718568027084,15.8122,148.81,148.77,0.17]
[1718568027690,18.2986,148.81,148.77,0.17]
[1718568028395,23.2713,148.81,148.77,0.17]
[1718568031508,2.4865,148.8,148.77,0.17]
[1718568032393,2.4865,148.8,148.75,5.68]
[1718568032394,2.4867,148.79,148.76,0.17]
[1718568032590,2.4869,148.78,148.73,0.17]
[1718568032784,2.4869,148.78,148.74,5.34]
[1718568033807,7.4606,148.78,148.73,5.51]
[1718568034110,7.4606,148.78,148.74,0.17]
[1718568034111,2.4869,148.78,148.74,0.17]
[1718568034292,7.8269,148.78,148.74,0.17]
[1718568034494,5.34,148.78,148.74,0.17]
[1718568034694,24.8678,148.79,148.73,5.68]
[1718568034695,2.4868,148.79,148.73,5.68]
[1718568034900,7.8268,148.79,148.73,5.68]
[1718568035312,5.34,148.79,148.73,5.68]